Cogmind - Beta 14 @@@ ROGUE MODE // 2024.08.12 @ 23:44:12 Player: Darcyisverycute Result: Destroyed by Dirty Bomb Trap Performance ------------- Evolutions (0) 0 Regions Visited (2) 400 Robots Destroyed (26) 130 Value Destroyed (584) 584 Prototype IDs (0) 0 Alien Tech Used (0) 0 Bonus (0) 0 TOTAL SCORE: 1114 Bonus ------- None Cogmind --------- Core Integrity 0/250 Matter 300/300 Energy 160/160 System Corruption 0% Temperature Cool (0) Movement Core (300) Ox5 Location -10/Mines Parts ------- > --- POWER (1) -------- Light Nuclear Core > --- PROPULSION (2) --- (None) > --- UTILITY (2) ------ Small Storage Unit Signal Interpreter > --- WEAPON (2) ------- Grenade Launcher Ripper > --- INVENTORY (8) ---- Light Ion Engine Wheel Large Storage Unit High-capacity Matter Pod (200) Targeting Computer Propulsion Shielding Hacking Suite Rocket Launcher Peak State ------------ > --- POWER ------------ Light Nuclear Core > --- PROPULSION ------- Aluminum Leg > --- UTILITY ---------- Small Storage Unit Signal Interpreter > --- WEAPON ----------- Grenade Launcher Ripper > --- INVENTORY -------- Light Ion Engine Wheel Large Storage Unit High-capacity Matter Pod Targeting Computer Propulsion Shielding Hacking Suite Rocket Launcher [Rating: 12] Favorites ----------- Power Light Ion Engine Engine Light Ion Engine Power Core Light Nuclear Core Propulsion Aluminum Leg Leg Aluminum Leg Wheel Wheel Hover Unit Hover Unit Utility Small Storage Unit Storage Small Storage Unit Processor Signal Interpreter Weapon Light Assault Rifle Energy Gun Medium Laser Ballistic Gun Light Assault Rifle Launcher Grenade Launcher Slashing Weapon Ripper Build | -11 -10 -10 ------- Run | Yrd Mat Min Slots Evolved . | . . . Power . | . . . Propulsion . | . . . Utility . | . . . Weapon . | . . . Parts Attached 21 | 5 10 6 Power 2 | . 1 1 Engine 1 | . 1 . Core 1 | . . 1 Reactor . | . . . Propulsion 8 | 2 3 3 Treads . | . . . Leg 5 | 2 1 2 Wheel 1 | . . 1 Hover 2 | . 2 . Flight . | . . . Utility 4 | . 4 . Device . | . . . Storage 1 | . 1 . Processor 3 | . 3 . Hackware . | . . . Protection . | . . . Artifact . | . . . Weapon 7 | 3 2 2 Energy Gun 3 | 2 1 . Energy Cannon . | . . . Ballistic Gun 2 | 1 1 . Ballistic Cannon . | . . . Launcher 1 | . . 1 Special Weapon . | . . . Impact Weapon . | . . . Slashing Weapon 1 | . . 1 Piercing Weapon . | . . . Special Melee Weapon . | . . . Unidentified Prototypes . | . . . Parts Lost 6 | . . 6 Power 1 | . . 1 Propulsion 4 | . . 4 Utility . | . . . Weapon 1 | . . 1 Highest Loss Streak 3 | . . 3 To Critical Strikes . | . . . Average Slot Usage (%) 94 | . 95 92 Engine 10 | . 13 7 Core 2 | . . 6 Leg 13 | . 15 10 Wheel 1 | . . 4 Hover 9 | . 12 6 Storage 13 | . 12 14 Processor 12 | . 11 14 Energy Gun 11 | . 14 7 Ballistic Gun 13 | . 14 12 Launcher 2 | . . 6 Peak Build Rating 12 | 4 8 12 Average Rating 7 | 2 7 8 On Entrance 4 | . 4 8 Naked Turns . | . . . Heaviest Build 16 | 4 11 16 Greatest Support 20 | 20 20 20 Greatest Overweight (x) 3 | . 3 2 Average Overweight (x) . | . . . Largest Inventory Capacity 8 | 5 8 8 Average Capacity 7 | 5 7 8 Most Carried 8 | 5 8 8 Average Carried 6 | 4 6 7 Final Capacity 8 | 5 8 8 Final Carried 8 | 5 8 8 Class Distribution -------------------- 51% | Scavenger-Mutant 48% | Mutant Dominant Class ---------------- Mutant | -10/Materials Scavenger-Mutant | -10/Mines Resources | -11 -10 -10 ----------- Run | Yrd Mat Min Matter Collected 739 | 231 384 124 Remotely . | . . . Salvage Created 766 | . 618 148 Parts 58 | . 49 9 Haulers Intercepted 2 | . 2 . Recyclers Shooed 2 | . 2 . Parts Field Recycled . | . . . Retrieved Matter . | . . . Parts Self-Destructed . | . . . Prevented . | . . . Kills | -11 -10 -10 ------- Run | Yrd Mat Min Combat Hostiles Destroyed 18 | . 12 6 Guns 15 | . 12 3 AOE 3 | . . 3 Classes Destroyed 6 | . 5 1 Tunneler 1 | . . 1 Hauler 2 | . 2 . Operator 2 | . 2 . Watcher 3 | . 3 . Swarmer 7 | . 3 4 Grunt 11 | . 9 2 Best Kill Streak 3 | . 3 3 Combat Bots Only 3 | . 3 3 Max Kills in Single Turn 1 | . 1 1 Gunslinging . | . . . Exploded 1 | . . 1 Melee . | . . . Uniques/NPCs Destroyed . | . . . Combat | -11 -10 -10 -------- Run | Yrd Mat Min Hostile Shots Fired 78 | . 41 37 Missed 22 | . 11 11 Damage Taken 786 | . 337 449 Core 252 | . 128 124 Absorbed by Shields . | . . . Core Remaining (%) 100 | 100 . . Volleys Fired 87 | . 67 20 Largest 2 | . 2 2 Hottest 70 | . 70 60 Shots Fired 172 | . 132 40 Gun 166 | . 132 34 Cannon . | . . . Launcher 6 | . . 6 Special . | . . . Kinetic 87 | . 67 20 Thermal 63 | . 63 . Explosive 6 | . . 6 Electromagnetic 16 | . 2 14 Robot Hit Streak 12 | . 12 7 Robot Miss Streak 5 | . 5 2 Penetration Max . | . . . Secondary Targets 2 | . . 2 Max Gunslinging Chain 1 | . . 1 Shots Hit Robots 108 | . 84 24 Core Hits 46 | . 36 10 Critical Kills . | . . . Critical Parts Destroyed . | . . . Critical Strikes 4 | . 4 . Burn 4 | . 4 . Melee Attacks . | . . . Impact . | . . . Slashing . | . . . Piercing . | . . . Sneak Attacks . | . . . Combat Hostiles . | . . . Follow-up Attacks . | . . . Damage Inflicted 1431 | . 917 514 Guns 1106 | . 913 193 Cannons . | . . . Explosions 321 | . . 321 Melee . | . . . Ramming 4 | . 4 . Kinetic 418 | . 333 85 Thermal 638 | . 534 104 Explosive 217 | . . 217 Electromagnetic 154 | . 46 108 Impact . | . . . Slashing . | . . . Piercing . | . . . Highest Corruption . | . . . Average Corruption . | . . . Corruption Purged . | . . . Corruption Blocked . | . . . Overload Shots . | . . . Overflow Damage 23 | . . 23 Projectiles . | . . . Explosions 23 | . . 23 Melee . | . . . Knockbacks . | . . . Impact . | . . . Kinetic . | . . . Secondary . | . . . Self-Inflicted Damage 165 | . . 165 Shots 6 | . . 6 Rammed . | . . . Targets Rammed 2 | . 2 . Kicked 2 | . 2 . Crushed . | . . . Highest Temperature 200 | . 200 101 Average Temperature 47 | . 50 34 Received Heat Transfer 231 | . 162 69 Siege Activations . | . . . Robots Corrupted . | . . . Combat Hostiles . | . . . Parts Fried . | . . . Impact Corruptions . | . . . Robots Melted . | . . . Combat Hostiles . | . . . Parts Melted 3 | . 3 . Heat Transferred 2000 | . 1850 150 Parts Sabotaged . | . . . Parts Stolen . | . . . Parts Stripped . | . . . Power Chain Reactions 2 | . . 2 Alert | -11 -10 -10 ------- Run | Yrd Mat Min Peak Influence 217 | . 217 173 Initial 34 | . . 34 Average 90 | . 92 95 Maximum Alert Level 1 | . 1 . Low Security (%) 98 | 100 97 100 Level 1 1 | . 2 . Level 2 . | . . . Level 3 . | . . . Level 4 . | . . . Level 5 . | . . . High Security . | . . . Max Security . | . . . Squads Dispatched 3 | . 3 . Investigation 1 | . 1 . Extermination . | . . . Reinforcement 2 | . 2 . Assault . | . . . Garrison . | . . . Intercept . | . . . Searches Triggered . | . . . Construction Impeded . | . . . Haulers Reinforced . | . . . Active Scanning Responses . | . . . Cargo Convoy Interrupts . | . . . Stealth | -11 -10 -10 --------- Run | Yrd Mat Min Distress Signals . | . . . Communications Jammed . | . . . Distress Signals . | . . . Times Spotted 34 | . 23 11 Peak Tracking Total 4 | . 4 3 Tactical Retreats 1 | . . 1 Traps | -11 -10 -10 ------- Run | Yrd Mat Min Traps Triggered 1 | . 1 . Indirectly . | . . . Trap Hack Attempts . | . . . Triggered . | . . . Disarmed . | . . . Reprogrammed . | . . . Reused . | . . . Traps Extracted . | . . . Installed . | . . . Triggered 1 | . . 1 Machines | -11 -10 -10 ---------- Run | Yrd Mat Min Machines Disabled 1 | . . 1 Max in Single Turn 1 | . . 1 Machines Repaired . | . . . Machines Dismantled . | . . . Machines Sabotaged . | . . . Overloaded Fab Kills . | . . . Hacking | -11 -10 -10 --------- Run | Yrd Mat Min Machines Accessed 7 | . 6 1 Terminals 6 | . 5 1 Fabricators . | . . . Repair Stations . | . . . Recycling Units 1 | . 1 . Scanalyzers . | . . . Garrison Access . | . . . Total Hacks 20 | . 16 4 Successful 7 | . 5 2 Failed 13 | . 11 2 Catastrophic 3 | . 3 . Database Lockouts . | . . . Manual 7 | . 7 . Terminals 17 | . 13 4 Fabricators . | . . . Repair Stations . | . . . Recycling Units 3 | . 3 . Scanalyzers . | . . . Garrison Access . | . . . Terminal Hacks 5 | . 3 2 Robot Analysis 1 | . 1 . Branch Access Points 1 | . 1 . Dispatch Records 1 | . . 1 Zone Layout 2 | . 1 1 Fabricator Hacks . | . . . Repair Station Hacks . | . . . Recycling Unit Hacks 2 | . 2 . Report Inventory 1 | . 1 . Retrieve Components 1 | . 1 . Scanalyzer . | . . . Garrison Access Hacks . | . . . Unauthorized Hacks . | . . . Terminals . | . . . Fabricators . | . . . Repair Stations . | . . . Recycling Units . | . . . Scanalyzers . | . . . Garrison Access . | . . . Data Cores Recovered . | . . . Used . | . . . Hacking Detections 7 | . 6 1 Full Trace Events . | . . . Feedback Events . | . . . Feedback Blocked . | . . . Robot Schematics Acquired . | . . . Robots Built . | . . . Authchips . | . . . Time . | . . . Total Robot Build Rating . | . . . Part Schematics Acquired . | . . . Parts Built . | . . . Authchips . | . . . Time . | . . . Total Part Build Rating . | . . . Parts Repaired . | . . . Time . | . . . Parts Recycled . | . . . Recycled Matter . | . . . Retrieved Matter . | . . . Retrieved Components 1 | . 1 . Parts Scanalyzed . | . . . Part Schematics Acquired . | . . . Parts Damaged . | . . . Bothacking | -11 -10 -10 ------------ Run | Yrd Mat Min Used RIF Installer . | . . . Robots Hacked . | . . . Non-combat . | . . . Combat . | . . . Robot Hacks Applied . | . . . Relay Couplers Released . | . . . Fabnet Peak Effective % . | . . . Robots Rewired . | . . . Allies Hacked . | . . . Hacks Repelled . | . . . Allies | -11 -10 -10 -------- Run | Yrd Mat Min Total Allies . | . . . Largest Group . | . . . Highest-Rated Group . | . . . Highest-Rated Ally . | . . . Total Orders . | . . . Ally Attacks . | . . . Total Damage . | . . . Kills . | . . . Allies Corrupted . | . . . Allies Melted . | . . . Intel | -11 -10 -10 ------- Run | Yrd Mat Min Robot Analysis Total 1 | . 1 . Derelict Logs Recovered 2 | . . 2 Drone Launches . | . . . Drone Recoveries . | . . . Exploration | -11 -10 -10 ------------- Run | Yrd Mat Min Turns Passed 1713 | 61 998 654 Spaces Moved 1415 | 49 911 455 Core 15 | 13 1 1 Treads . | . . . Legs 534 | 36 324 174 Wheels 206 | . . 206 Hover 660 | . 586 74 Flight . | . . . Fastest Speed 50 | 50 56 56 Average Speed 92 | 101 78 119 Slowest Speed 200 | 120 200 190 Overloaded Moves . | . . . Propulsion Burnouts . | . . . Robots Hopped . | . . . Cave-ins Triggered . | . . . Exploration Rate (%) 62 | 3 90 93 Regions Visited 2 Branch Regions 1 Pre-discovered Areas 1 | . . 1 Known Exits Taken 1 | . 1 . Unknown Exits Taken 1 | 1 . . Scrap Searched 2 | . . 2 Spaces Dug 14 | . . 14 Terrain Destroyed 56 | . . 56 Melee . | . . . Projectile . | . . . AOE 56 | . . 56 Terrain Rammed . | . . . Walls Destroyed . | . . . Machines Disabled . | . . . Actions | -11 -10 -10 --------- Run | Yrd Mat Min Total 1658 | 58 1071 529 Wait 104 | . 60 44 Move 1413 | 48 910 455 Hop . | . . . Pick Up 18 | 5 12 1 Fast Attach 12 | 4 3 5 Attach 5 | . 4 1 Detach 4 | . 3 1 Swap 4 | 1 3 . Drop 9 | . 7 2 Fire 87 | . 67 20 Melee . | . . . Ram . | . . . Kick 2 | . 2 . Crush . | . . . Escape Stasis . | . . . Rewire . | . . . Trap . | . . . Miscellaneous . | . . . Route ------- -11/Scrapyard -10/Materials (discovered 4 exits: *Mat x3 / *Min) -10/Mines (discovered 2 exits: *Mat x2) History --------- Turn | Location | Event 17 | -11/Scrapyard | Discovered new exit (range 15) 62 | -11/Scrapyard | Entered Materials 174 | -10/Materials | Discovered new exit (range 10) 303 | -10/Materials | Build established: Mutant 377 | -10/Materials | Discovered new exit (range 16) 409 | -10/Materials | Discovered new exit (range 14) 693 | -10/Materials | Identified exit to Materials 763 | -10/Materials | Core integrity fell below 50% 936 | -10/Materials | Build established: Scavenger-Mutant 998 | -10/Materials | Identified exit to Mines 1060 | -10/Materials | Entered Mines 1130 | -10/Mines | Discovered exit to Materials (range 17) 1201 | -10/Mines | Received a Rocket Launcher from a helpful Derelict 1399 | -10/Mines | Core integrity fell below 20% 1428 | -10/Mines | Lost 3 parts (1p1n1w) 1455 | -10/Mines | Discovered exit to Materials (range 9) 1621 | -10/Mines | A weapon hastily lodged in a ceiling crevice suddenly fell to the ground 1639 | -10/Mines | Learned Materials stockpile data 1665 | -10/Mines | Learned location of Storage (-9) 1714 | -10/Mines | Destroyed by Dirty Bomb Trap Last Messages --------------- 01606_ T-07 Excavator is excavating. 01607_ U-05 Engineer lays Concrete. 01608_ U-05 Engineer builds a Wall. 01621_ A Ripper has been hastily shoved under some rubble with a note attached: "Rip and tear!" 01623_ Dropped Lgt. Assault Rifle. 01626_ Acquired Ripper. 01639_ Acquired derelict log, extracted data. Data stored: Materials stockpile data. 01658_ Extracted 77 matter. 01665_ Acquired derelict log, extracted data. World map updated: -9/Storage. 01708_ A derelict is hurriedly installing traps. 01710_ N7-KCQ(g): "Hehe, this'll put a wrench in their mining defense operations..." 01710_ N7-KCQ(g) slips into the shadows. 01714_ An explosion rips through the floor. 01714_ Dirty Bomb Trap short circuited. 01714_ An explosion rips through the floor. 01714_ Aluminum Leg destroyed. Map ----- +----------------------------------------------------+ | | | | | | | | | | | | | | | | | ?????????????????????????????????????????????????? | | ?????????????????????????????????????????????????? | | ????????????????????????????????????????????????## | | ????????????????????????????????????????????#####T | | ??????????????????????????????# ???????????# | | ?????????????????????????????# ???????????# | | ????????????????????????????? #???????????# """ | | ??????????????????????????### ##??????????# """ | | ??????????????????????????;; ;#??????????# """ | | ????????????????????##??##; ###????????# """ | | ???????????????????? ?? ##???????# | | ???????????????????# #??#; ##??????# | | ???????????????????# #??#;; < #??????# | | ???????????????????# #??# #?########### | | ???????????????????# #??; #### ##????? | | ???????????????????# #??# #### ##???? | | ???????????????????# #??# [ ;#### ##??? | | ???????????????????# #??#@ ; #### #### | | ???########???????## #### ^# """ | | ???# #???????# k s #?# """ | | ???# !! #???????# ####### ;### ### """ ## | | ???# !! ######### #?????? ##?# ##? | | ???# ! ####????#??# ###?? | | ???# !! ###### ### ##????????### ##???? | | ??# ##????# ## #??????????# #????? | | ??# #####????## #??????????## ##????? | | ??#####????????# [ ##???????????## ##?????? | | ???????????????# ###?????????????#### #??????? | | ???????????????## ##??????????????????# #??????? | | ????????????????# ##??????????????????# #??????? | | ???????????????## #??########????????# #??????? | | ????????######## #### #????????# #??????? | | ???????# ### #????????# #??????? | | ????????# ########## #??????? | | ????????# # ##### ### % #????### | | ??????????## ## ##??# #########???## | | ???????????###?#######???# ## #???######### | | ???????????????????######### ### ##### | | ????????############ | | ????????# ######### ######## ##### | | ????????# ########## #???????# ##?????# #???##### | | ???????????????????# #?????## ##????# #???????# | +----------------------------------------------------+ Best States ------------- Heat Dissipation 25 Energy Generation 14 Energy Capacity 160 Matter Stores 300 Matter Capacity 300 Sight Range 16 Terrain Scan Density 10 Evasion (%) 55 Targeting Accuracy 5 Item Schematics ----------------- None Robot Schematics ------------------ None Fabricated ------------ Nothing Alien Tech Used ----------------- None Achievements -------------- None Challenges ------------ None Game ------ Seed BlastInsulationInsulator Manual? 0 Play Time 00:20:18 Cumulative 63.2 hours Start 2024.08.12 @ 23:22:59 End 2024.08.12 @ 23:44:12 Sessions 1 Manual Loads 0 Difficulty Rogue Special Mode None Game No. 28 Rogue 20 Adventurer 8 Explorer 0 Win Type - Total 1 Types 1/0/0/0/0/0/0/0/0 Lore% 25 Gallery% 43 Achievement% 41 Wizard Run 0 Options --------- Layout 0 ASCII 0 Keyboard 1 Movement Numpad Keybinds 1 Fullscreen 1 Font 18/SmallcapsGlow Map View 76x50 Zoom Use 0% Tactical HUD 1 Map Filters NONE Filters NONE Steam 1 RUN: 73f6ab1c-11ce-4141-99f5-b97cef508386